fUSD/lending_fUSD_20260314
["ID","MTS","AMOUNT","RATE_DAILY","PERIOD"]
[408358572,1773491453976,-151.14,0.0004,2]
[408358573,1773491453985,-151.14,0.0004,2]
[408358574,1773491453994,-151.14,0.0004,2]
[408358575,1773491454002,-151.14,0.0004,2]
[408358576,1773491454011,-151.14,0.0004,2]
[408358577,1773491454020,-151.14,0.0004,2]
[408358578,1773491454029,-151.14,0.0004,2]
[408358579,1773491454038,-151.14,0.0004,2]
[408358580,1773491454047,-151.14,0.0004,2]
[408358581,1773491454056,-151.14,0.0004,2]
[408358582,1773491454064,-151.14,0.0004,2]
[408358583,1773491454072,-151.14,0.0004,2]
[408358584,1773491454081,-151.14,0.0004,2]
[408358585,1773491454090,-151.14,0.0004,2]
[408358586,1773491454098,-151.14,0.0004,2]
[408358587,1773491454107,-151.0,0.0004,14]
[408358588,1773491454116,-151.0,0.0004,120]
[408358589,1773491454124,-151.0,0.0004,120]
[408358590,1773491454133,-151.0,0.0004,60]
[408358591,1773491454143,-151.0,0.0004,120]
[408358592,1773491454153,-151.0,0.0004,120]
[408358593,1773491454162,-150.0,0.00040165,2]
[408358594,1773491454171,-161.0,0.00040202,11]
[408358595,1773491454179,-846.02,0.000403,30]
[408358596,1773491454187,-500.0,0.00040307,2]
[408358597,1773491454196,-500.0,0.00040307,2]
[408358598,1773491454204,-500.0,0.00040307,2]
[408358599,1773491454212,-500.0,0.00040307,2]
[408358600,1773491454221,-500.0,0.00040307,2]
[408358601,1773491454228,-500.0,0.00040307,2]
[408358602,1773491454237,-500.0,0.00040307,2]
[408358603,1773491454245,-500.0,0.00040307,2]
[408358604,1773491454253,-500.0,0.00040307,2]
[408358605,1773491454262,-500.0,0.00040307,2]
[408358606,1773491454270,-500.0,0.00040307,2]
[408358607,1773491454278,-500.0,0.00040307,2]
[408358608,1773491454287,-500.0,0.00040307,2]
[408358609,1773491454295,-500.0,0.00040307,2]
[408358610,1773491454303,-500.0,0.00040307,2]
[408358611,1773491454312,-500.0,0.00040307,2]
[408358612,1773491454320,-500.0,0.00040307,2]
[408358613,1773491454331,-500.0,0.00040307,2]
[408358614,1773491454340,-500.0,0.00040307,2]
[408358615,1773491454352,-500.0,0.00040307,2]
[408358616,1773491454361,-500.0,0.00040307,2]
[408358617,1773491454371,-500.0,0.00040307,2]
[408358618,1773491454380,-500.0,0.00040307,2]
[408358619,1773491454389,-500.0,0.00040307,2]
[408358620,1773491454398,-500.0,0.00040307,2]
[408358621,1773491454407,-500.0,0.00040307,2]
[408358622,1773491454415,-500.0,0.00040307,2]
[408358623,1773491454424,-500.0,0.00040307,2]
[408358624,1773491454432,-500.0,0.00040307,2]
[408358625,1773491454441,-500.0,0.00040307,2]
[408358626,1773491454449,-500.0,0.00040307,2]
[408358627,1773491454457,-500.0,0.00040307,2]
[408358628,1773491454467,-500.0,0.00040307,2]
[408358629,1773491454475,-500.0,0.00040307,2]
[408358630,1773491454483,-500.0,0.00040307,2]
[408358631,1773491454491,-500.0,0.00040307,2]
[408358632,1773491454499,-500.0,0.00040307,2]
[408358633,1773491454507,-500.0,0.00040307,2]
[408358634,1773491454515,-500.0,0.00040307,2]
[408358635,1773491454524,-500.0,0.00040307,2]
[408358636,1773491454533,-500.0,0.00040307,2]
[408358637,1773491454542,-500.0,0.00040307,2]
[408358638,1773491454551,-500.0,0.00040307,2]
[408358639,1773491454559,-500.0,0.00040307,2]
[408358640,1773491454567,-500.0,0.00040307,2]
[408358641,1773491454575,-500.0,0.00040307,2]
[408358642,1773491454584,-500.0,0.00040307,2]
[408358643,1773491454592,-555.0,0.00040307,2]
[408358644,1773491454601,-1008.52,0.00040327,120]
[408358645,1773491454609,-656.46,0.000404,30]
[408358646,1773491454617,-150.51,0.000404,30]
[408358647,1773491454625,-233.4,0.000404,30]
[408358648,1773491454633,-776.78,0.000404,30]
[408358649,1773491454641,-499.38,0.000405,30]
[408358650,1773491454650,-156.370933,0.000407,120]
[408358651,1773491454659,-72707.10974568,0.000407,6]
[408358652,1773491454667,-1260.0,0.00040744,2]
[408358653,1773491454675,-1214.0,0.00040744,2]
[408358654,1773491454683,-923.0,0.00040744,2]
[408358655,1773491454692,-1340.4,0.00040744,2]
[408358656,1773491454700,-1043.0,0.00040744,2]
[408358657,1773491454708,-675.10541552,0.000409,2]
[408358658,1773491454716,-200.0,0.000409,14]
[408358659,1773491454724,-798.35,0.000409,30]
[408358660,1773491454732,-10279.58539146,0.000409,2]
[408358661,1773491454741,-215.9605461,0.000409,2]
[408358662,1773491454749,-159.65926722,0.000409,2]
[408358663,1773491454765,-1008.52,0.00040945,120]
[408358664,1773491454774,-48095.32186096,0.00041,3]
[408358665,1773491454784,-989.32214204,0.00041,2]
[408358666,1773491454793,-5000000.0,0.00041,120]
[408358667,1773491454802,-221.362351,0.00041,120]
[408358668,1773491454812,-521.22113536,0.00041,30]
[408358669,1773491454821,-151.0,0.00041,120]
[408358670,1773491454830,-151.0,0.00041,120]
[408358671,1773491454840,-151.0,0.00041,120]
[408358672,1773491454849,-151.0,0.00041,120]
[408358673,1773491454858,-223.310372,0.00041,120]
[408358674,1773491454868,-151.0,0.00041,60]
[408358675,1773491454878,-151.0,0.00041,120]
[408358676,1773491454888,-300.0,0.00041068,22]
[408358677,1773491454898,-241.83140513,0.00041068,120]
[408358678,1773491454909,-200.0,0.00041096,120]
[408358679,1773491454918,-300.0,0.00041096,10]
[408358680,1773491454928,-174.0,0.00041096,120]
[408358681,1773491454938,-179.52,0.00041096,60]
[408358682,1773491454947,-253.67739467,0.00041096,2]
[408358683,1773491454957,-848.0,0.00041096,120]
[408358684,1773491454967,-7933.16682863,0.0004128,7]
[408358685,1773491454977,-4921.71029932,0.0004128,7]
[408358686,1773491454987,-167.89,0.00041363,2]
[408358687,1773491454996,-167.89,0.00041363,2]
[408358688,1773491455007,-167.89,0.00041363,2]
[408358689,1773491455018,-167.89,0.00041363,2]
[408358690,1773491455027,-846.02,0.000414,30]
[408358691,1773491455038,-656.46,0.000414,30]
[408358692,1773491455048,-150.51,0.000414,30]
[408358693,1773491455058,-233.4,0.000414,30]
[408358694,1773491455067,-776.78,0.000415,30]
[408358695,1773491455079,-508.0,0.000415,24]
[408358696,1773491455089,-1008.52,0.00041564,120]
[408358697,1773491455099,-848.0,0.00041644,120]
[408358698,1773491455108,-5584.1938385,0.00041688,2]
[408358699,1773491455117,-2310.0431822,0.000419,14]
[408358700,1773491455127,-600.0,0.00041918,10]
[408358701,1773491455137,-300.0,0.00042,10]
[408358702,1773491455146,-798.35,0.00042,30]
[408358703,1773491455156,-346.68985768,0.00042025,73]
[408358704,1773491455165,-150.0,0.00042173,120]
[408358705,1773491455174,-1008.52,0.00042182,120]
[408358706,1773491455184,-500.0,0.00042191,120]
[408358707,1773491455193,-403.740854,0.00042191,120]
[408358708,1773491455202,-848.0,0.00042192,120]
[408358709,1773491455212,-257.7846528,0.00042211,2]
[408358710,1773491455223,-1406.925,0.0004222,7]
[408358711,1773491455233,-656.46,0.000423,30]
[408358712,1773491455243,-150.51,0.000423,30]
[408358713,1773491455253,-233.4,0.000423,30]
[408358714,1773491455262,-210.0,0.00042546,120]
[408358715,1773491455272,-982.81,0.00042546,120]
[408358716,1773491455281,-4000.0,0.0004274,14]
[408358717,1773491455290,-900.0,0.0004274,10]
[408358718,1773491455425,-172.5562486,0.0004274,120]
[408358719,1773491455435,-423.52,0.0004274,120]
[408358720,1773491455445,-1008.52,0.000428,120]
[408358721,1773491455456,-2000.0,0.000429,2]
[408358722,1773491455465,-1058.7438145,0.00042907,2]
[408358723,1773491455475,-556.35781102,0.00042907,2]
[408358724,1773491455484,-300.88551611,0.00042907,2]
[408358725,1773491455493,-864.28311762,0.00042907,2]
[408358726,1773491455503,-300.9955707,0.00042907,2]
[408358727,1773491455512,-300.8777594,0.00042907,2]
[408358728,1773491455522,-310.97358211,0.00042907,2]
[408358729,1773491455533,-302.09693134,0.00042907,2]
[408358730,1773491455542,-416.45217614,0.00042907,2]
[408358731,1773491455552,-300.81579303,0.00042907,2]
[408358732,1773491455562,-306.54760202,0.00042907,2]
[408358733,1773491455572,-300.92297769,0.00042907,2]
[408358734,1773491455581,-300.89532808,0.00042907,2]
[408358735,1773491455592,-307.81796912,0.00042907,2]
[408358736,1773491455601,-301.24635825,0.00042907,2]
[408358737,1773491455612,-300.0,0.00042907,2]
[408358738,1773491455621,-570.37322195,0.00042907,2]
[408358739,1773491455632,-607.04392572,0.00042907,2]
[408358740,1773491455642,-300.85490677,0.00042907,2]
[408358741,1773491455652,-300.85585109,0.00042907,2]
[408358742,1773491455661,-301.85326574,0.00042907,2]
[408358743,1773491455671,-303.20588711,0.00042907,2]
[408358744,1773491455681,-300.0,0.00042907,2]
[408358745,1773491455690,-300.0,0.00042907,2]
[408358746,1773491455700,-300.0,0.00042907,2]
[408358747,1773491455709,-300.85218716,0.00042907,2]
[408358748,1773491455718,-528.3047757,0.00042907,2]
[408358749,1773491455728,-300.26638727,0.00042907,2]
[408358750,1773491455738,-300.82497123,0.00042907,2]
[408358751,1773491455748,-303.20588711,0.00042907,2]
[408358752,1773491455759,-300.93858075,0.00042907,2]
[408358753,1773491455769,-301.25655407,0.00042907,2]
[408358754,1773491455779,-303.20588711,0.00042907,2]
[408358755,1773491455788,-301.20444413,0.00042907,2]
[408358756,1773491455799,-404.27451629,0.00042907,2]
[408358757,1773491455809,-300.000001,0.00042907,2]
[408358758,1773491455818,-1050.14169216,0.00042907,2]
[408358759,1773491455828,-307.09317041,0.00042907,2]
[408358760,1773491455837,-300.0,0.00042907,2]
[408358761,1773491455846,-1144.29720945,0.00042907,2]
[408358762,1773491455856,-497.43863233,0.00042907,2]
[408358763,1773491455865,-300.0,0.00042907,2]
[408358764,1773491455874,-308.36419653,0.00042907,2]
[408358765,1773491455883,-300.0,0.00042907,2]
[408358766,1773491455891,-460.10536322,0.00042907,2]
[408358767,1773491455900,-300.0,0.00042907,2]
[408358768,1773491455910,-300.0,0.00042907,2]
[408358769,1773491455919,-300.0,0.00042907,2]
[408358770,1773491455928,-401.36789292,0.00042907,2]
[408358771,1773491455937,-300.0,0.00042907,2]
[408358772,1773491455946,-520.42881649,0.00042907,2]
[408358773,1773491455955,-300.0,0.00042907,2]
[408358774,1773491455965,-300.0,0.00042907,2]
[408358775,1773491455974,-300.0,0.00042907,2]
[408358776,1773491455983,-300.0,0.00042907,2]
[408358777,1773491455993,-300.0,0.00042907,2]
[408358778,1773491456003,-2085.0214,0.00042941,2]
[408358779,1773491456014,-567.0,0.00043,2]
[408358780,1773491456023,-152.10160028,0.00043,7]
[408358781,1773491456032,-152.10160028,0.00043,7]
[408358782,1773491456042,-150.0,0.00043,2]
[408358783,1773491456051,-846.02,0.00043,30]
[408358784,1773491456061,-164.0,0.00043,120]
[408358785,1773491456070,-167.89,0.00043051,2]
[408358786,1773491456079,-167.89,0.00043051,2]
[408358787,1773491456087,-167.89,0.00043051,2]
[408358788,1773491456096,-500.0,0.00043068,120]
[408358789,1773491456106,-500.0,0.00043068,120]
[408358790,1773491456115,-500.0,0.00043068,120]
[408358791,1773491456124,-500.0,0.00043068,120]
[408358792,1773491456133,-550.0,0.00043068,120]
[408358793,1773491456142,-162.0,0.000431,120]
[408358794,1773491456151,-315.188,0.00043288,120]
[408358795,1773491456160,-315.188,0.00043288,120]
[408358796,1773491456170,-315.188,0.00043288,120]
[408358797,1773491456182,-315.188,0.00043288,120]
[408358798,1773491456192,-315.188,0.00043288,120]
[408358799,1773491456201,-315.188,0.00043288,120]
[408358800,1773491456210,-315.188,0.00043288,120]
[408358801,1773491456219,-315.188,0.00043288,120]
[408358802,1773491456228,-315.188,0.00043288,120]
[408358803,1773491456238,-315.188,0.00043288,120]
[408358804,1773491456247,-315.188,0.00043288,120]
[408358805,1773491456256,-315.188,0.00043288,120]
[408358806,1773491456265,-175.6051,0.000433,2]
[408358807,1773491456274,-25000.0,0.00043361,15]
[408358808,1773491456283,-15606.08602293,0.00043361,15]
[408358809,1773491456293,-151.5,0.00043374,2]
[408358810,1773491456302,-161.0,0.000434,120]
[408358811,1773491456311,-2085.0214,0.00043477,2]
[408358812,1773491456321,-151.5,0.00043497,2]
[408358813,1773491456331,-205.5811,0.000435,2]
[408358814,1773491456345,-198.65009595,0.00043562,10]
[408358815,1773491456354,-1444.0,0.00043562,120]
[408358816,1773491456363,-151.5,0.00043611,2]
[408358817,1773491456375,-151.5,0.00043735,2]
[408358818,1773491456384,-1260.0,0.00043744,2]
[408358819,1773491456393,-1214.0,0.00043744,2]
[408358820,1773491456403,-923.0,0.00043744,2]
[408358821,1773491456415,-1043.0,0.00043744,2]
[408358822,1773491456424,-240.674,0.000438,2]
[408358823,1773491456434,-160.0,0.000438,120]
[408358824,1773491456444,-341.38852623,0.00043836,2]
[408358825,1773491456464,-151.5,0.00043935,2]
[408358826,1773491456475,-300.0,0.00044,10]
[408358827,1773491456484,-8954.92,0.00044,14]
[408358828,1773491456494,-5034.2603284,0.00044,10]
[408358829,1773491456503,-2085.0214,0.00044014,2]
[408358830,1773491456515,-281.7572,0.000441,2]
[408358831,1773491456524,-208.562662,0.00044138,120]
[408358832,1773491456534,-151.5,0.00044167,2]
[408358833,1773491456543,-846.02,0.000442,30]
[408358834,1773491456553,-151.5,0.00044207,2]
[408358835,1773491456562,-150.0,0.00044281,120]
[408358836,1773491456572,-329.8535,0.000444,2]
[408358837,1773491456584,-156.69393361,0.0004444,2]
[408358838,1773491456606,-165.39660523,0.00044498,120]
[408358839,1773491456626,-158.24480588,0.00044498,120]
[408358840,1773491456637,-159.29781552,0.00044498,120]
[408358841,1773491456646,-150.0,0.00044549,30]
[408358842,1773491456655,-150.0,0.00044549,30]
[408358843,1773491456665,-150.0,0.00044549,30]
[408358844,1773491456674,-150.0,0.00044549,30]
[408358845,1773491456683,-150.0,0.00044549,30]
[408358846,1773491456692,-150.0,0.00044549,30]
[408358847,1773491456702,-322.1011925,0.00044549,30]
[408358848,1773491456711,-150.0,0.00044549,30]
[408358849,1773491456721,-150.0,0.00044549,30]
[408358850,1773491456730,-169.38985709,0.00044549,30]
[408358851,1773491456740,-150.0,0.00044549,30]
[408358852,1773491456749,-281.1109361,0.00044549,30]
[408358853,1773491456758,-150.0,0.00044549,30]
[408358854,1773491456768,-150.0,0.00044549,30]
[408358855,1773491456778,-150.0,0.00044549,30]
[408358856,1773491456787,-150.0,0.00044549,30]
[408358857,1773491456797,-2085.0214,0.00044551,2]
[408358858,1773491456816,-322.1011925,0.00044599,30]
[408358859,1773491456829,-169.38985709,0.00044599,30]
[408358860,1773491456839,-386.1598,0.000446,2]
[408358861,1773491456851,-150.0,0.00044604,30]
[408358862,1773491456861,-150.0,0.00044608,30]
[408358863,1773491456871,-150.0,0.00044619,30]
[408358864,1773491456882,-150.0,0.00044641,30]
[408358865,1773491456891,-322.1011925,0.00044649,30]
[408358866,1773491456902,-169.38985709,0.00044649,30]
[408358867,1773491456913,-150.0,0.00044659,30]
[408358868,1773491456923,-150.0,0.00044667,30]
[408358869,1773491456934,-150.0,0.00044679,30]
[408358870,1773491456944,-150.0,0.00044687,30]
[408358871,1773491456957,-150.0,0.00044689,30]
[408358872,1773491456967,-150.0,0.00044699,30]
[408358873,1773491456978,-322.1011925,0.00044699,30]
[408358874,1773491456990,-169.38985709,0.00044699,30]
[408358875,1773491456999,-150.0,0.00044714,30]
[408358876,1773491457011,-150.0,0.00044726,30]
[408358877,1773491457020,-150.0,0.00044732,30]
[408358878,1773491457031,-151.5,0.00044745,2]
[408358879,1773491457040,-322.1011925,0.00044749,30]
[408358880,1773491457050,-169.38985709,0.00044749,30]
[408358881,1773491457059,-150.0,0.00044758,30]
[408358882,1773491457069,-150.0,0.00044764,30]
[408358883,1773491457078,-150.0,0.00044764,30]
[408358884,1773491457087,-150.0,0.00044769,30]
[408358885,1773491457096,-150.0,0.00044785,30]
[408358886,1773491457107,-322.1011925,0.00044799,30]
[408358887,1773491457117,-169.38985709,0.00044799,30]
[408358888,1773491457127,-150.0,0.0004481,30]
[408358889,1773491457136,-151.5,0.00044811,2]
[408358890,1773491457146,-150.0,0.00044824,30]
[408358891,1773491457156,-150.0,0.00044824,30]
[408358892,1773491457165,-150.0,0.00044824,30]
[408358893,1773491457174,-150.0,0.00044828,30]
[408358894,1773491457184,-150.0,0.00044844,30]
[408358895,1773491457193,-150.0,0.00044849,30]
[408358896,1773491457202,-322.1011925,0.00044849,30]
[408358897,1773491457212,-169.38985709,0.00044849,30]
[408358898,1773491457223,-150.0,0.00044879,30]
[408358899,1773491457233,-150.0,0.00044898,30]
[408358900,1773491457244,-322.1011925,0.00044899,30]
[408358901,1773491457254,-169.38985709,0.00044899,30]
[408358902,1773491457265,-11028.84762164,0.000449,7]
[408358903,1773491457274,-452.0777,0.000449,2]
[408358904,1773491457285,-150.0,0.00044903,30]
[408358905,1773491457295,-150.0,0.00044916,30]
[408358906,1773491457306,-500.0,0.00044932,10]
[408358907,1773491457315,-150.0,0.00044934,30]
[408358908,1773491457325,-150.0,0.0004494,30]
[408358909,1773491457339,-151.5,0.00044947,2]
[408358910,1773491457349,-322.1011925,0.00044949,30]
[408358911,1773491457359,-169.38985709,0.00044949,30]
[408358912,1773491457369,-150.0,0.00044962,30]
[408358913,1773491457380,-150.0,0.00044962,30]
[408358914,1773491457390,-150.0,0.00044967,30]
[408358915,1773491457399,-167.0,0.00044972,120]
[408358916,1773491457410,-150.0,0.0004498,30]
[408358917,1773491457421,-150.0,0.0004498,30]
[408358918,1773491457431,-151.5,0.00044988,2]
[408358919,1773491457441,-150.0,0.00044989,30]
[408358920,1773491457450,-150.0,0.00044999,30]
[408358921,1773491457460,-322.1011925,0.00044999,30]
[408358922,1773491457470,-169.38985709,0.00044999,30]
[408358923,1773491457480,-5000.0,0.00045,7]
[408358924,1773491457489,-5000.0,0.00045,7]
[408358925,1773491457498,-1260.0,0.00045,3]
[408358926,1773491457507,-343.0,0.00045,10]
[408358927,1773491457517,-1078.46726465,0.00045,3]
[408358928,1773491457527,-4526.0,0.00045,8]
[408358929,1773491457536,-100612.09157694,0.00045,10]
[408358930,1773491457545,-201.27983705,0.00045,60]
[408358931,1773491457554,-328.67,0.00045,120]
[408358932,1773491457563,-421.53,0.00045,120]
[408358933,1773491457572,-425.89,0.00045,120]
[408358934,1773491457581,-717.68,0.00045,120]
[408358935,1773491457591,-798.35,0.00045,30]
[408358936,1773491457599,-182.84926542,0.00045,30]
[408358937,1773491457609,-508.0,0.00045,27]
[408358938,1773491457618,-150.0,0.00045007,30]
[408358939,1773491457627,-150.0,0.00045021,30]
[408358940,1773491457636,-150.0,0.00045037,30]
[408358941,1773491457645,-150.0,0.00045044,30]
[408358942,1773491457653,-322.1011925,0.00045049,30]
[408358943,1773491457663,-169.38985709,0.00045049,30]
[408358944,1773491457672,-151.5,0.00045055,2]
[408358945,1773491457682,-151.5,0.00045066,2]
[408358946,1773491457691,-151.268069,0.00045068,120]
[408358947,1773491457700,-152.41979,0.00045068,120]
[408358948,1773491457709,-152.41979,0.00045068,120]
[408358949,1773491457718,-152.41979,0.00045068,120]
[408358950,1773491457728,-152.41979,0.00045068,120]
[408358951,1773491457737,-152.41979,0.00045068,120]
[408358952,1773491457749,-152.41979,0.00045068,120]
[408358953,1773491457758,-152.41979,0.00045068,120]
[408358954,1773491457767,-152.41979,0.00045068,120]
[408358955,1773491457776,-154.077347,0.00045068,120]
[408358956,1773491457785,-213.965758,0.00045068,120]
[408358957,1773491457794,-151.0,0.00045068,31]
[408358958,1773491457803,-151.0,0.00045068,31]
[408358959,1773491457812,-151.0,0.00045068,2]
[408358960,1773491457823,-151.0,0.00045068,2]
[408358961,1773491457844,-151.0,0.00045068,2]
[408358962,1773491457859,-151.0,0.00045068,2]
[408358963,1773491457868,-202.769573,0.00045068,2]
[408358964,1773491457877,-254.502207,0.00045068,120]
[408358965,1773491457886,-159.254585,0.00045068,120]
[408358966,1773491457894,-223.22209,0.00045068,120]
[408358967,1773491457903,-167.174281,0.00045068,120]
[408358968,1773491457912,-228.120372,0.00045068,120]
[408358969,1773491457921,-223.926008,0.00045068,120]
[408358970,1773491457930,-207.179318,0.00045068,120]
[408358971,1773491457939,-467.232953,0.00045068,120]
[408358972,1773491457948,-202.257997,0.00045068,120]
[408358973,1773491457957,-467.232953,0.00045068,120]
[408358974,1773491457966,-467.232953,0.00045068,120]
[408358975,1773491457975,-467.232953,0.00045068,120]
[408358976,1773491457984,-467.232953,0.00045068,120]
[408358977,1773491457993,-467.232953,0.00045068,120]
[408358978,1773491458002,-467.232953,0.00045068,120]
[408358979,1773491458011,-467.232953,0.00045068,120]
[408358980,1773491458020,-467.232953,0.00045068,120]
[408358981,1773491458028,-467.232953,0.00045068,120]
[408358982,1773491458038,-467.232953,0.00045068,120]
[408358983,1773491458047,-467.232953,0.00045068,120]
[408358984,1773491458055,-283.595877,0.00045068,120]
[408358985,1773491458064,-169.094819,0.00045068,120]
[408358986,1773491458073,-169.094819,0.00045068,120]
[408358987,1773491458082,-169.094819,0.00045068,120]
[408358988,1773491458091,-169.094819,0.00045068,120]
[408358989,1773491458100,-169.094819,0.00045068,120]
[408358990,1773491458109,-169.094819,0.00045068,120]
[408358991,1773491458118,-169.094819,0.00045068,120]
[408358992,1773491458127,-169.094819,0.00045068,120]
[408358993,1773491458250,-169.094819,0.00045068,120]
[408358994,1773491458260,-169.094819,0.00045068,120]
[408358995,1773491458269,-169.094819,0.00045068,120]
[408358996,1773491458278,-169.094819,0.00045068,120]
[408358997,1773491458287,-151.0,0.00045068,120]
[408358998,1773491458296,-151.0,0.00045068,120]
[408358999,1773491458305,-151.0,0.00045068,120]
[408359000,1773491458315,-151.304545,0.00045068,120]
[408359001,1773491458324,-151.0,0.00045068,120]
[408359002,1773491458334,-151.304545,0.00045068,120]
[408359003,1773491458348,-154.485503,0.00045068,120]
[408359004,1773491458357,-151.304545,0.00045068,120]
[408359005,1773491458367,-151.304545,0.00045068,120]
[408359006,1773491458376,-151.304545,0.00045068,120]
[408359007,1773491458385,-151.304545,0.00045068,120]
[408359008,1773491458395,-150.0,0.0004507,30]
[408359009,1773491458405,-167.01692511,0.00045072,120]
[408359010,1773491458415,-150.0,0.00045079,30]
[408359011,1773491458424,-2085.0214,0.00045088,2]
[408359012,1773491458433,-150.0,0.00045099,30]
[408359013,1773491458442,-150.0,0.00045099,30]
[408359014,1773491458451,-322.1011925,0.00045099,30]
[408359015,1773491458460,-169.38985709,0.00045099,30]
[408359016,1773491458469,-150.0,0.00045099,30]
[408359017,1773491458479,-150.0,0.00045099,30]
[408359018,1773491458488,-150.0,0.00045107,30]
[408359019,1773491458497,-150.0,0.00045138,30]
[408359020,1773491458506,-150.0,0.00045149,30]
[408359021,1773491458516,-322.1011925,0.00045149,30]
[408359022,1773491458527,-169.38985709,0.00045149,30]
[408359023,1773491458537,-150.0,0.00045154,30]
[408359024,1773491458546,-150.0,0.00045177,30]
[408359025,1773491458556,-150.0,0.00045191,30]
[408359026,1773491458566,-150.0,0.00045195,30]
[408359027,1773491458577,-150.0,0.00045195,30]
[408359028,1773491458587,-150.0,0.00045197,30]
[408359029,1773491458597,-322.1011925,0.00045199,30]
[408359030,1773491458606,-169.38985709,0.00045199,30]
[408359031,1773491458615,-529.2478,0.000452,2]
[408359032,1773491458624,-150.0,0.000452,30]
[408359033,1773491458634,-1000.0,0.00045205,10]
[408359034,1773491458643,-150.0,0.00045209,30]
[408359035,1773491458652,-150.0,0.00045237,30]
[408359036,1773491458661,-150.0,0.00045246,30]
[408359037,1773491458670,-151.5,0.00045247,2]
[408359038,1773491458679,-322.1011925,0.00045249,30]
[408359039,1773491458688,-169.38985709,0.00045249,30]
[408359040,1773491458697,-150.0,0.00045256,30]
[408359041,1773491458706,-150.0,0.00045264,30]
[408359042,1773491458715,-150.0,0.00045282,30]
[408359043,1773491458724,-150.0,0.00045299,30]
[408359044,1773491458733,-322.1011925,0.00045299,30]
[408359045,1773491458742,-169.38985709,0.00045299,30]
[408359046,1773491458751,-150.0,0.00045315,30]
[408359047,1773491458760,-150.0,0.00045316,30]
[408359048,1773491458769,-150.0,0.00045319,30]
[408359049,1773491458778,-150.0,0.00045331,30]
[408359050,1773491458787,-151.5,0.00045331,2]
[408359051,1773491458795,-322.1011925,0.00045349,30]
[408359052,1773491458804,-169.38985709,0.00045349,30]
[408359053,1773491458813,-150.0,0.00045374,30]
[408359054,1773491458822,-150.0,0.00045374,30]
[408359055,1773491458831,-150.0,0.00045374,30]
[408359056,1773491458840,-150.0,0.00045374,30]
[408359057,1773491458851,-150.0,0.00045374,30]
[408359058,1773491458862,-150.0,0.00045386,30]
[408359059,1773491458871,-322.1011925,0.00045399,30]
[408359060,1773491458880,-169.38985709,0.00045399,30]
[408359061,1773491458889,-150.0,0.0004541,30]
[408359062,1773491458900,-150.0,0.0004541,30]
[408359063,1773491458909,-150.0,0.00045429,30]
[408359064,1773491458918,-150.0,0.00045433,30]
[408359065,1773491458928,-150.0,0.00045449,30]
[408359066,1773491458937,-322.1011925,0.00045449,30]
[408359067,1773491458947,-169.38985709,0.00045449,30]
[408359068,1773491458957,-150.0,0.00045455,30]
[408359069,1773491458967,-150.0,0.00045461,30]
[408359070,1773491458975,-150.0,0.00045466,30]
[408359071,1773491458984,-160.0,0.00045473,120]